fUSD/lending_fUSD_20260519
["ID","MTS","AMOUNT","RATE_DAILY","PERIOD"]
[422649257,1779205852000,-715.15661973,0.0003016,2]
[422649260,1779205852000,-6136.05,0.000302,14]
[422649259,1779205852000,-15786.78333361,0.000302,2]
[422649258,1779205852000,-2985.93,0.000302,2]
[422649261,1779205852000,-174.75,0.000302,7]
[422649266,1779205852000,-203.3,0.00030239,2]
[422649249,1779205852000,-154.0,0.00030153,30]
[422649265,1779205852000,-181.23,0.00030208,10]
[422649264,1779205852000,-150.0,0.00030205,2]
[422649263,1779205852000,-402.14,0.000302,2]
[422649267,1779205852000,-1000.0,0.0003031,2]
[422649268,1779205852000,-1000.0,0.0003031,2]
[422649271,1779205852000,-1000.0,0.0003031,2]
[422649270,1779205852000,-1000.0,0.0003031,2]
[422649269,1779205852000,-1000.0,0.0003031,2]
[422649274,1779205852000,-1000.0,0.00030312,2]
[422649220,1779205852000,-1541.0,0.00030137,120]
[422649272,1779205852000,-1000.0,0.00030312,2]
[422649275,1779205852000,-1000.0,0.00030312,2]
[422649276,1779205852000,-1000.0,0.00030312,2]
[422649262,1779205852000,-163.6,0.000302,7]
[422649251,1779205852000,-200.0,0.00030153,30]
[422649273,1779205852000,-1000.0,0.00030312,2]
[422649243,1779205852000,-153.0,0.00030137,120]
[422649245,1779205852000,-165.0,0.00030146,30]
[422649219,1779205852000,-1541.0,0.00030137,120]
[422649218,1779205852000,-1541.0,0.00030137,120]
[422649227,1779205852000,-151.0,0.00030137,120]
[422649228,1779205852000,-1541.0,0.00030137,120]
[422649224,1779205852000,-1541.0,0.00030137,120]
[422649226,1779205852000,-1541.0,0.00030137,120]
[422649225,1779205852000,-151.0,0.00030137,120]
[422649232,1779205852000,-151.0,0.00030137,120]
[422649229,1779205852000,-1541.0,0.00030137,120]
[422649231,1779205852000,-1541.0,0.00030137,120]
[422649233,1779205852000,-151.0,0.00030137,120]
[422649235,1779205852000,-151.0,0.00030137,120]
[422649221,1779205852000,-1541.0,0.00030137,120]
[422649234,1779205852000,-1541.0,0.00030137,120]
[422649230,1779205852000,-151.0,0.00030137,120]
[422649246,1779205852000,-155.0,0.00030146,30]
[422649244,1779205852000,-154.0,0.00030146,30]
[422649242,1779205852000,-1541.0,0.00030137,120]
[422649247,1779205852000,-164.0,0.00030146,30]
[422649248,1779205852000,-260.0,0.00030146,30]
[422649238,1779205852000,-1541.0,0.00030137,120]
[422649240,1779205852000,-1541.0,0.00030137,120]
[422649239,1779205852000,-1541.0,0.00030137,120]
[422649237,1779205852000,-1541.0,0.00030137,120]
[422649236,1779205852000,-1541.0,0.00030137,120]
[422649241,1779205852000,-1541.0,0.00030137,120]
[422649314,1779205853000,-500.0,0.00031,120]
[422649312,1779205853000,-349.91781792,0.00031,5]
[422649309,1779205853000,-224.4361029,0.000309,2]
[422649310,1779205853000,-200.0,0.00030994,2]
[422649306,1779205853000,-850.5,0.000309,120]
[422649307,1779205853000,-198774.99176066,0.000309,3]
[422649308,1779205853000,-428.07744798,0.000309,3]
[422649316,1779205853000,-2226.53711816,0.00031,2]
[422649302,1779205853000,-1635.26818831,0.0003084,2]
[422649311,1779205853000,-200.0,0.00030994,2]
[422649305,1779205853000,-241.62588145,0.000309,3]
[422649320,1779205853000,-215.15951567,0.00031,3]
[422649315,1779205853000,-360.0,0.00031,120]
[422649317,1779205853000,-208.58623393,0.00031,120]
[422649319,1779205853000,-215.15951567,0.00031,7]
[422649318,1779205853000,-160.0,0.00031,120]
[422649322,1779205853000,-732.18,0.0003105,30]
[422649321,1779205853000,-150.0,0.00031011,2]
[422649323,1779205853000,-200.0,0.0003105,2]
[422649324,1779205853000,-249.21,0.00031079,7]
[422649326,1779205853000,-152.0,0.00031126,4]
[422649304,1779205853000,-163.6,0.000309,7]
[422649325,1779205853000,-200.0,0.00031096,2]
[422649313,1779205853000,-11542.66305934,0.00031,2]
[422649303,1779205853000,-174.75,0.000309,7]
[422649288,1779205853000,-527.30431348,0.00030479,7]
[422649297,1779205853000,-162.73122119,0.00030597,7]
[422649329,1779205853000,-155.0,0.00031146,30]
[422649278,1779205853000,-1224.0,0.00030377,2]
[422649279,1779205853000,-200.0,0.00030383,2]
[422649277,1779205853000,-625.0,0.00030377,2]
[422649280,1779205853000,-200.0,0.00030383,2]
[422649281,1779205853000,-597.09,0.00030413,7]
[422649283,1779205853000,-200.0,0.00030438,2]
[422649282,1779205853000,-1203.89,0.00030418,7]
[422649284,1779205853000,-2314.0,0.00030475,3]
[422649287,1779205853000,-192.7817306,0.00030479,7]
[422649286,1779205853000,-210.13389606,0.00030479,7]
[422649285,1779205853000,-2314.0,0.00030478,3]
[422649289,1779205853000,-376.7629325,0.00030479,2]
[422649292,1779205853000,-332.46196845,0.00030484,7]
[422649290,1779205853000,-176.04714497,0.00030479,2]
[422649293,1779205853000,-155.19696045,0.00030508,2]
[422649291,1779205853000,-238.39036139,0.00030484,7]
[422649294,1779205853000,-223.29344094,0.00030517,2]
[422649295,1779205853000,-206.24141652,0.00030519,2]
[422649298,1779205853000,-200.0,0.00030687,2]
[422649300,1779205853000,-200.0,0.00030743,2]
[422649296,1779205853000,-207.45185816,0.00030597,7]
[422649299,1779205853000,-200.0,0.00030687,2]
[422649301,1779205853000,-6136.05,0.000308,14]
[422649328,1779205853000,-165.0,0.00031146,30]
[422649327,1779205853000,-154.0,0.00031146,30]
[422649334,1779205853000,-200.0,0.00031153,30]
[422649358,1779205853000,-498.69295267,0.00031389,7]
[422649360,1779205853000,-446.58688188,0.00031423,2]
[422649361,1779205853000,-412.48283304,0.00031425,2]
[422649362,1779205853000,-200.5885028,0.000315,2]
[422649363,1779205853000,-150.0,0.000315,2]
[422649364,1779205853000,-1000.0,0.000315,7]
[422649369,1779205853000,-200.0,0.00031507,30]
[422649365,1779205853000,-414.90371632,0.00031505,7]
[422649368,1779205853000,-197.0,0.00031507,30]
[422649366,1779205853000,-325.46244238,0.00031505,7]
[422649367,1779205853000,-500.0,0.00031507,2]
[422649370,1779205853000,-297.0,0.00031507,30]
[422649372,1779205853000,-163.6,0.000316,7]
[422649373,1779205853000,-150.0,0.00031643,30]
[422649375,1779205853000,-150.0,0.00031716,2]
[422649374,1779205853000,-150.0,0.00031703,30]
[422649377,1779205853000,-500.0,0.00031786,2]
[422649376,1779205853000,-163.0,0.00031758,3]
[422649378,1779205853000,-500.0,0.00031786,2]
[422649379,1779205853000,-500.0,0.00031786,2]
[422649380,1779205853000,-500.0,0.00031786,2]
[422649381,1779205853000,-500.0,0.00031786,2]
[422649330,1779205853000,-164.0,0.00031146,30]
[422649359,1779205853000,-310.39392091,0.00031413,2]
[422649356,1779205853000,-274.85149076,0.00031384,7]
[422649371,1779205853000,-174.75,0.000316,7]
[422649355,1779205853000,-352.09428995,0.00031384,2]
[422649357,1779205853000,-476.78072279,0.00031389,7]
[422649335,1779205853000,-152.0,0.00031153,30]
[422649382,1779205853000,-497.0,0.00031786,2]
[422649336,1779205853000,-663.38,0.00031155,7]
[422649331,1779205853000,-260.0,0.00031146,30]
[422649338,1779205853000,-157.0,0.00031155,30]
[422649332,1779205853000,-154.0,0.00031153,30]
[422649337,1779205853000,-153.0,0.00031155,30]
[422649339,1779205853000,-234.0,0.00031155,30]
[422649341,1779205853000,-398.123999,0.000312,7]
[422649340,1779205853000,-157.0,0.00031155,30]
[422649342,1779205853000,-398.123999,0.000312,7]
[422649333,1779205853000,-153.0,0.00031153,30]
[422649343,1779205853000,-451.314655,0.000312,7]
[422649353,1779205853000,-565.14439875,0.00031384,2]
[422649352,1779205853000,-171.6544133,0.00031384,7]
[422649351,1779205853000,-790.95647022,0.00031384,7]
[422649349,1779205853000,-420.26779212,0.00031383,7]
[422649350,1779205853000,-385.56346119,0.00031383,7]
[422649354,1779205853000,-213.75557111,0.00031384,7]
[422649347,1779205853000,-1166.66,0.00031304,7]
[422649346,1779205853000,-200.0,0.00031303,2]
[422649345,1779205853000,-200.0,0.00031303,2]
[422649344,1779205853000,-6136.05,0.000313,14]
[422649348,1779205853000,-200.0,0.00031361,2]
[422649427,1779205854000,-175.01328827,0.0003211,7]
[422649426,1779205854000,-488.19366357,0.0003211,7]
[422649424,1779205854000,-622.35557448,0.0003211,7]
[422649423,1779205854000,-408.26738126,0.00032084,7]
[422649420,1779205854000,-200.0,0.00032055,2]
[422649422,1779205854000,-165.0169709,0.00032084,7]
[422649413,1779205854000,-100000.0,0.00032,14]
[422649418,1779205854000,-669.88032282,0.00032026,2]
[422649416,1779205854000,-192.30854507,0.00032,120]
[422649414,1779205854000,-290.0,0.00032,120]
[422649415,1779205854000,-167.42101506,0.00032,120]
[422649421,1779205854000,-235.08822507,0.00032084,7]
[422649428,1779205854000,-154.0,0.00032146,30]
[422649440,1779205854000,-157.0,0.00032155,30]
[422649425,1779205854000,-428.55232116,0.0003211,7]
[422649430,1779205854000,-155.0,0.00032146,30]
[422649431,1779205854000,-164.0,0.00032146,30]
[422649432,1779205854000,-260.0,0.00032146,30]
[422649436,1779205854000,-152.0,0.00032153,30]
[422649434,1779205854000,-153.0,0.00032153,30]
[422649435,1779205854000,-200.0,0.00032153,30]
[422649433,1779205854000,-154.0,0.00032153,30]
[422649438,1779205854000,-157.0,0.00032155,30]
[422649439,1779205854000,-234.0,0.00032155,30]
[422649437,1779205854000,-153.0,0.00032155,30]
[422649444,1779205854000,-909.03877955,0.000323,2]
[422649419,1779205854000,-618.72424956,0.00032028,2]
[422649429,1779205854000,-166.94104197,0.00032146,30]
[422649417,1779205854000,-465.59088136,0.00032017,2]
[422649387,1779205854000,-5000.0,0.00031967,2]
[422649410,1779205854000,-73348.18799782,0.00031995,7]
[422649384,1779205854000,-164.0,0.00031894,3]
[422649383,1779205854000,-6136.05,0.000318,14]
[422649385,1779205854000,-850.5,0.000319,120]
[422649386,1779205854000,-160.0,0.000319,120]
[422649442,1779205854000,-203.3,0.0003221,5]
[422649390,1779205854000,-1054.60862696,0.00031987,7]
[422649388,1779205854000,-630.40168818,0.00031986,7]
[422649393,1779205854000,-400.16544722,0.00031987,7]
[422649392,1779205854000,-164.79520825,0.00031987,7]
[422649391,1779205854000,-343.30882661,0.00031987,7]
[422649389,1779205854000,-578.34519179,0.00031987,7]
[422649395,1779205854000,-229.03495195,0.00031987,7]
[422649398,1779205854000,-168.56967375,0.00031987,2]
[422649411,1779205854000,-10037.08963817,0.00031995,7]
[422649396,1779205854000,-420.18080447,0.00031987,7]
[422649399,1779205854000,-164.75063604,0.00031987,2]
[422649397,1779205854000,-427.51114223,0.00031987,7]
[422649401,1779205854000,-549.70298151,0.00031987,7]
[422649404,1779205854000,-222.57037923,0.00031991,7]
[422649403,1779205854000,-399.89,0.00031987,7]
[422649402,1779205854000,-571.27,0.00031987,7]
[422649400,1779205854000,-528.14143492,0.00031987,2]
[422649405,1779205854000,-715.17108418,0.00031992,7]
[422649407,1779205854000,-117363.15,0.00031995,7]
[422649406,1779205854000,-664.9239369,0.00031992,7]
[422649409,1779205854000,-11861.3163784,0.00031995,7]
[422649408,1779205854000,-4474.91678066,0.00031995,7]
[422649412,1779205854000,-1761.39419145,0.00032,2]
[422649394,1779205854000,-753.525865,0.00031987,2]
[422649443,1779205854000,-1637.08748206,0.00032286,2]
[422649441,1779205854000,-250.0,0.00032169,7]
[422649445,1779205854000,-174.75,0.000323,7]
[422649476,1779205854000,-151.0,0.00032877,7]
[422649483,1779205854000,-1304.979961,0.00032877,7]
[422649479,1779205854000,-151.0,0.00032877,7]
[422649480,1779205854000,-151.0,0.00032877,7]
[422649486,1779205854000,-1304.979961,0.00032877,7]
[422649484,1779205854000,-1304.979961,0.00032877,7]
[422649485,1779205854000,-1304.979961,0.00032877,7]
[422649488,1779205854000,-1304.979961,0.00032877,7]
[422649487,1779205854000,-1304.979961,0.00032877,7]
[422649490,1779205854000,-1304.979961,0.00032877,7]
[422649489,1779205854000,-1304.979961,0.00032877,7]
[422649493,1779205854000,-1304.979961,0.00032877,7]
[422649494,1779205854000,-1304.979961,0.00032877,7]
[422649481,1779205854000,-258.112699,0.00032877,7]
[422649492,1779205854000,-1304.979961,0.00032877,7]
[422649495,1779205854000,-1304.979961,0.00032877,7]
[422649497,1779205854000,-1304.979961,0.00032877,7]
[422649496,1779205854000,-1304.979961,0.00032877,7]
[422649498,1779205854000,-1304.979961,0.00032877,7]
[422649499,1779205854000,-1304.979961,0.00032877,7]
[422649500,1779205854000,-1304.979961,0.00032877,7]
[422649502,1779205854000,-1304.979957,0.00032877,7]
[422649501,1779205854000,-1304.979961,0.00032877,7]
[422649503,1779205854000,-151.0,0.00032877,7]
[422649504,1779205854000,-151.0,0.00032877,7]
[422649505,1779205854000,-151.0,0.00032877,7]
[422649447,1779205854000,-6136.05,0.000324,14]
[422649506,1779205854000,-151.000006,0.00032877,7]
[422649491,1779205854000,-1304.979961,0.00032877,7]
[422649482,1779205854000,-599.68,0.00032877,2]
[422649507,1779205854000,-1055.42,0.00032877,30]
[422649477,1779205854000,-151.0,0.00032877,7]
[422649478,1779205854000,-151.0,0.00032877,7]
[422649448,1779205854000,-5000.0,0.0003243,2]
[422649449,1779205854000,-583.05529881,0.00032485,30]
[422649451,1779205854000,-1000.0,0.000325,2]
[422649450,1779205854000,-1129.42,0.00032486,7]
[422649454,1779205854000,-1000.0,0.000325,14]
[422649452,1779205854000,-1000.0,0.000325,2]
[422649453,1779205854000,-1000.0,0.000325,7]
[422649456,1779205854000,-6691.43480669,0.000325,7]
[422649455,1779205854000,-1000.0,0.000325,14]
[422649457,1779205854000,-500.0,0.00032517,2]
[422649459,1779205854000,-500.0,0.00032517,2]
[422649458,1779205854000,-500.0,0.00032517,2]
[422649461,1779205854000,-292.5,0.00032548,2]
[422649446,1779205854000,-163.6,0.000323,7]
[422649460,1779205854000,-898.8,0.00032517,2]
[422649462,1779205854000,-150.0,0.00032562,2]
[422649475,1779205854000,-151.0,0.00032877,7]
[422649473,1779205854000,-151.0,0.00032877,7]
[422649471,1779205854000,-1002.78,0.00032877,2]
[422649472,1779205854000,-350.25,0.00032877,2]
[422649467,1779205854000,-3573.77561151,0.0003287,7]
[422649474,1779205854000,-151.0,0.00032877,7]
[422649465,1779205854000,-831.15492112,0.00032595,7]
[422649470,1779205854000,-500.0,0.00032876,2]
[422649469,1779205854000,-684.73480028,0.00032876,30]
[422649466,1779205854000,-4912.50607181,0.000328,2]
[422649463,1779205854000,-1318.26078369,0.0003259,7]
[422649464,1779205854000,-941.90733125,0.0003259,2]
[422649468,1779205854000,-1000.0,0.00032876,30]
[422649548,1779205855000,-154.0,0.00033153,30]
[422649550,1779205855000,-200.0,0.00033153,30]
[422649546,1779205855000,-164.0,0.00033146,30]
[422649547,1779205855000,-260.0,0.00033146,30]
[422649543,1779205855000,-350.0,0.00033014,5]
[422649545,1779205855000,-155.0,0.00033146,30]
[422649542,1779205855000,-1111.27706513,0.00033,60]
[422649540,1779205855000,-1111.27706513,0.00033,60]
[422649538,1779205855000,-1111.27706513,0.00033,30]
[422649549,1779205855000,-153.0,0.00033153,30]
[422649544,1779205855000,-154.0,0.00033146,30]
[422649541,1779205855000,-1111.27706513,0.00033,60]
[422649557,1779205855000,-1224.0,0.00033377,2]
[422649551,1779205855000,-152.0,0.00033153,30]
[422649555,1779205855000,-157.0,0.00033155,30]
[422649554,1779205855000,-234.0,0.00033155,30]
[422649556,1779205855000,-1468.5352988,0.00033268,30]
[422649553,1779205855000,-157.0,0.00033155,30]
[422649559,1779205855000,-1587.0,0.00033458,11]
[422649561,1779205855000,-1581.91294043,0.00033495,7]
[422649560,1779205855000,-1587.0,0.00033481,11]
[422649563,1779205855000,-997.38590535,0.000335,7]
[422649562,1779205855000,-1130.2887975,0.00033495,2]
[422649558,1779205855000,-2314.0,0.00033458,11]
[422649564,1779205855000,-6136.05,0.000335,14]
[422649539,1779205855000,-1111.27706513,0.00033,60]
[422649552,1779205855000,-153.0,0.00033155,30]
[422649535,1779205855000,-1111.27706513,0.00033,30]
[422649521,1779205855000,-3412.88407768,0.00032997,2]
[422649537,1779205855000,-1111.27706513,0.00033,30]
[422649565,1779205855000,-1232.86713795,0.000335,2]
[422649509,1779205855000,-3640.0,0.00032877,120]
[422649510,1779205855000,-500.0,0.00032877,2]
[422649511,1779205855000,-500.0,0.00032877,2]
[422649508,1779205855000,-1000.0,0.00032877,120]
[422649512,1779205855000,-500.0,0.00032877,2]
[422649514,1779205855000,-500.0,0.00032877,2]
[422649513,1779205855000,-500.0,0.00032877,2]
[422649517,1779205855000,-6136.05,0.000329,14]
[422649516,1779205855000,-417.09344142,0.00032877,2]
[422649518,1779205855000,-850.5,0.000329,120]
[422649520,1779205855000,-219.76129075,0.00032986,2]
[422649515,1779205855000,-500.0,0.00032877,2]
[422649519,1779205855000,-249.21,0.00032925,14]
[422649522,1779205855000,-52188.56887323,0.00033,2]
[422649523,1779205855000,-174.75,0.00033,30]
[422649524,1779205855000,-163.6,0.00033,30]
[422649525,1779205855000,-3948.0,0.00033,3]
[422649527,1779205855000,-6000.0,0.00033,3]
[422649526,1779205855000,-649.063364,0.00033,4]
[422649530,1779205855000,-192.30854507,0.00033,120]
[422649531,1779205855000,-571.941217,0.00033,14]
[422649529,1779205855000,-167.42101506,0.00033,120]
[422649532,1779205855000,-634.29,0.00033,7]
[422649528,1779205855000,-285.220618,0.00033,120]
[422649534,1779205855000,-1111.27706513,0.00033,30]
[422649536,1779205855000,-1111.27706513,0.00033,30]
[422649533,1779205855000,-1111.27706513,0.00033,30]
[422649568,1779205855000,-174.75,0.000337,30]
[422649625,1779205855000,-6136.05,0.000347,14]
[422649569,1779205855000,-163.6,0.000337,30]
[422649598,1779205855000,-350.0,0.00034247,2]
[422649601,1779205855000,-250.0,0.00034247,2]
[422649603,1779205855000,-200.0,0.00034247,120]
[422649602,1779205855000,-163.0,0.00034247,2]
[422649604,1779205855000,-297.0,0.00034247,120]
[422649606,1779205855000,-205.0,0.00034247,2]
[422649605,1779205855000,-150.0,0.00034247,2]
[422649608,1779205855000,-416.56269895,0.0003426,7]
[422649607,1779205855000,-416.56269895,0.0003426,2]
[422649609,1779205855000,-411.6732633,0.00034264,2]
[422649611,1779205855000,-3412.88407766,0.00034338,2]
[422649610,1779205855000,-411.6732633,0.00034264,7]
[422649617,1779205855000,-236.64,0.00034521,120]
[422649615,1779205855000,-163.0,0.00034441,11]
[422649613,1779205855000,-174.75,0.000344,30]
[422649616,1779205855000,-6250.0,0.00034463,7]
[422649614,1779205855000,-163.6,0.000344,30]
[422649618,1779205855000,-431.31,0.00034544,60]
[422649619,1779205855000,-167.69,0.00034544,60]
[422649620,1779205855000,-2122.98,0.00034544,60]
[422649621,1779205855000,-1483.98,0.00034544,60]
[422649622,1779205855000,-85914.58,0.00034544,60]
[422649624,1779205855000,-10000.0,0.0003465,2]
[422649623,1779205855000,-309.65270506,0.00034593,2]
[422649626,1779205855000,-2787.23999999,0.00034703,30]
[422649627,1779205855000,-249.21,0.00034772,30]
[422649566,1779205855000,-156.78561113,0.000336,120]
[422649600,1779205855000,-250.0,0.00034247,2]
[422649599,1779205855000,-323.0,0.00034247,2]
[422649612,1779205855000,-152.0,0.00034341,5]
[422649597,1779205855000,-350.0,0.00034247,2]
[422649567,1779205855000,-3412.88407766,0.00033667,2]
[422649596,1779205855000,-1000.0,0.00034247,120]
[422649571,1779205855000,-398.123999,0.00033771,19]
[422649570,1779205855000,-398.123999,0.00033756,19]
[422649572,1779205855000,-2314.0,0.00033778,11]
[422649573,1779205855000,-2314.0,0.00033801,11]
[422649574,1779205855000,-850.5,0.000339,120]
[422649576,1779205855000,-350.0,0.00033973,5]
[422649575,1779205855000,-1092.19,0.00033962,30]
[422649578,1779205855000,-2093.27529881,0.00034051,30]
[422649581,1779205855000,-155.0,0.00034146,30]
[422649580,1779205855000,-154.0,0.00034146,30]
[422649579,1779205855000,-6136.05,0.000341,14]
[422649583,1779205855000,-260.0,0.00034146,30]
[422649577,1779205855000,-4000.0,0.00034,10]
[422649584,1779205855000,-154.0,0.00034153,30]
[422649594,1779205855000,-663.38,0.00034207,14]
[422649582,1779205855000,-164.0,0.00034146,30]
[422649591,1779205855000,-157.0,0.00034155,30]
[422649593,1779205855000,-150.0,0.0003419,2]
[422649590,1779205855000,-234.0,0.00034155,30]
[422649592,1779205855000,-203.3,0.00034182,7]
[422649595,1779205855000,-500.0,0.00034246,2]
[422649588,1779205855000,-153.0,0.00034155,30]
[422649586,1779205855000,-200.0,0.00034153,30]
[422649587,1779205855000,-152.0,0.00034153,30]
[422649585,1779205855000,-153.0,0.00034153,30]
[422649589,1779205855000,-157.0,0.00034155,30]
[422649670,1779205856000,-400.0,0.0003527,2]
[422649669,1779205856000,-1500.0,0.000352,7]
[422649668,1779205856000,-314.308421,0.000352,26]
[422649667,1779205856000,-311.034375,0.000352,26]
[422649665,1779205856000,-234.0,0.00035155,30]
[422649661,1779205856000,-200.0,0.00035153,30]
[422649663,1779205856000,-153.0,0.00035155,30]
[422649662,1779205856000,-152.0,0.00035153,30]
[422649660,1779205856000,-153.0,0.00035153,30]
[422649664,1779205856000,-157.0,0.00035155,30]
[422649673,1779205856000,-165.20401115,0.000353,120]
[422649666,1779205856000,-159.40676161,0.00035155,30]
[422649675,1779205856000,-235.4,0.00035312,120]
[422649686,1779205856000,-962.0,0.00035616,10]
[422649672,1779205856000,-218.192053,0.000353,120]
[422649674,1779205856000,-471.72,0.00035312,120]
[422649677,1779205856000,-2314.0,0.00035607,11]
[422649676,1779205856000,-150.0,0.00035315,120]
[422649678,1779205856000,-141276.81711682,0.0003561,2]
[422649680,1779205856000,-3129.73699143,0.00035616,30]
[422649679,1779205856000,-488.12,0.00035616,60]
[422649681,1779205856000,-1000.0,0.00035616,120]
[422649682,1779205856000,-520.14295596,0.00035616,2]
[422649683,1779205856000,-1000.0,0.00035616,120]
[422649684,1779205856000,-1000.0,0.00035616,10]
[422649659,1779205856000,-154.0,0.00035153,30]
[422649671,1779205856000,-1587.0,0.00035287,11]
[422649658,1779205856000,-200.0,0.00035148,5]
[422649628,1779205856000,-1500.0,0.00034795,2]
[422649657,1779205856000,-200.0,0.00035148,5]
[422649687,1779205856000,-221.911184,0.00035616,7]
[422649630,1779205856000,-1845.56509717,0.00034852,7]
[422649629,1779205856000,-61632.86,0.000348,2]
[422649631,1779205856000,-1318.67026375,0.00034852,2]
[422649634,1779205856000,-350.0,0.00034931,5]
[422649636,1779205856000,-400.0,0.0003497,2]
[422649639,1779205856000,-1951.8169808,0.00035,2]
[422649633,1779205856000,-850.5,0.000349,120]
[422649635,1779205856000,-1587.0,0.00034967,11]
[422649638,1779205856000,-5201.18432691,0.00035,2]
[422649637,1779205856000,-1503.62641657,0.00035,5]
[422649641,1779205856000,-386.0,0.00035,120]
[422649642,1779205856000,-500.0,0.00035,7]
[422649640,1779205856000,-76487.30514655,0.00035,2]
[422649643,1779205856000,-526.0,0.00035,5]
[422649645,1779205856000,-293.95,0.00035,10]
[422649647,1779205856000,-174.75,0.000351,30]
[422649646,1779205856000,-3412.88407766,0.00035009,2]
[422649649,1779205856000,-168.43250945,0.00035134,2]
[422649648,1779205856000,-163.6,0.000351,30]
[422649644,1779205856000,-6288.53608973,0.00035,30]
[422649651,1779205856000,-154.0,0.00035146,30]
[422649650,1779205856000,-151.12408296,0.00035143,2]
[422649653,1779205856000,-164.0,0.00035146,30]
[422649652,1779205856000,-155.61702342,0.00035146,30]
[422649654,1779205856000,-260.0,0.00035146,30]
[422649656,1779205856000,-200.0,0.00035148,5]
[422649655,1779205856000,-200.0,0.00035148,5]
[422649688,1779205856000,-221.911184,0.00035616,7]
[422649632,1779205856000,-1163.61688957,0.00034857,7]
[422649689,1779205856000,-221.911184,0.00035616,7]
[422649720,1779205856000,-5000.0,0.00035906,2]
[422649725,1779205856000,-1000.0,0.00036,60]
[422649724,1779205856000,-648.16818801,0.00036,20]
[422649722,1779205856000,-1587.0,0.00035927,11]
[422649721,1779205856000,-5000.0,0.00035906,2]
[422649726,1779205856000,-5059.79459802,0.00036023,2]
[422649727,1779205856000,-5000.0,0.00036023,2]
[422649728,1779205856000,-5000.0,0.00036023,2]
[422649729,1779205856000,-5000.0,0.00036023,2]
[422649730,1779205856000,-5000.0,0.00036023,2]
[422649731,1779205856000,-1054.96,0.00036029,30]
[422649732,1779205856000,-1006.30158814,0.00036048,2]
[422649734,1779205856000,-1000.0,0.00036048,2]
[422649736,1779205856000,-260.0,0.00036146,30]
[422649739,1779205856000,-152.0,0.00036153,30]
[422649737,1779205856000,-156.0,0.00036153,30]
[422649735,1779205856000,-164.0,0.00036146,30]
[422649738,1779205856000,-200.0,0.00036153,30]
[422649744,1779205856000,-250.0,0.0003619,7]
[422649740,1779205856000,-203.3,0.00036153,30]
[422649741,1779205856000,-165.61,0.00036155,30]
[422649742,1779205856000,-234.0,0.00036155,30]
[422649743,1779205856000,-250.0,0.0003619,7]
[422649745,1779205856000,-244.30943303,0.00036196,2]
[422649747,1779205856000,-3629.9028,0.00036272,2]
[422649746,1779205856000,-1587.0,0.00036247,11]
[422649685,1779205856000,-1000.0,0.00035616,10]
[422649723,1779205856000,-4018.34,0.00036,14]
[422649719,1779205856000,-850.5,0.000359,120]
[422649733,1779205856000,-1000.0,0.00036048,2]
[422649716,1779205856000,-174.75,0.000358,30]
[422649693,1779205856000,-221.911184,0.00035616,7]
[422649718,1779205856000,-150.0,0.00035899,2]
[422649690,1779205856000,-221.911184,0.00035616,7]
[422649692,1779205856000,-221.911184,0.00035616,7]
[422649691,1779205856000,-221.911184,0.00035616,7]
[422649695,1779205856000,-221.911184,0.00035616,7]